[Event "African Individual Chess-ch Open 2024"]
[Site "Accra"]
[Date "2024.03.18"]
[Round "7.11"]
[White "Mhango, Banele"]
[Black "Mahamat Hachim Bachar"]
[Result "1-0"]
[ECO "D02"]
[WhiteElo "2193"]
[BlackElo "1843"]
[Annotator "RC"]
[PlyCount "77"]
[EventDate "2024.03.13"]
[EventCountry "GHA"]
[SourceTitle "playchess.com"]
[Source "ChessBase"]
[SourceQuality "1"]
[TimeControl "5400+30"]

1. Nf3 {[%emt 0:03:04]} d5 {[%emt 0:00:50]} 2. g3 {[%emt 0:00:13]} Nc6 {[%emt 0:00:12]} 3. d4 {[%emt 0:00:13]} Bf5 {[%emt 0:00:53]} 4. Bg2 {[%emt 0:00:35]} Nf6 {[%emt 0:01:41]} 5. O-O {[%emt 0:00:09]} Qd7 {[%emt 0:00:32]} 6. Ne5 {[%emt 0:06:19]} Nxe5 {[%emt 0:02:06]} 7. dxe5 {[%emt 0:00:04]} Ne4 {[%emt 0:00:24]} 8. Be3 {[%emt 0:01:28]} e6 {[%emt 0:00:40]} 9. f3 {[%emt 0:04:04]} Bc5 {[%emt 0:00:50]} 10. Bd4 {[%emt 0:01:05]} Bxd4+ {[%emt 0:01:26]} 11. Qxd4 {[%emt 0:00:03]} Ng5 {[%emt 0:01:06]} 12. h4 {[%emt 0:00:09]} h6 {[%emt 0:01:29]} 13. hxg5 {[%emt 0:00:04]} hxg5 {[%emt 0:03:03]} 14. c4 {[%emt 0:01:15]} Bh3 {[%emt 0:00:19]} 15. Bxh3 {[%emt 0:00:04]} Rxh3 {[%emt 0:00:59]} 16. Kg2 {[%emt 0:00:02]} Rh6 {[%emt 0:00:17]} 17. Nc3 {[%emt 0:00:11]} c6 {[%emt 0:00:34]} 18. Rh1 {[%emt 0:00:04]} dxc4 {[%emt 0:00:49]} 19. Qxd7+ {[%emt 0:00:41]} Kxd7 {[%emt 0:00:59]} 20. Rxh6 {[%emt 0:00:04]} gxh6 {[%emt 0:00:02]} 21. Rh1 {[%emt 0:00:06]} b5 {[%emt 0:01:59]} 22. Ne4 {[%emt 0:00:13]} a5 {[%emt 0:00:31]} 23. Rxh6 {[%emt 0:04:07]} Ke7 {[%emt 0:00:12]} 24. Rh1 {[%emt 0:00:34]} Rd8 {[%emt 0:00:05]} 25. Nd6 {[%emt 0:00:05]} Rxd6 {[%emt 0:01:41]} 26. exd6+ {[%emt 0:00:06]} Kxd6 {[%emt 0:02:05]} 27. Kf2 {[%emt 0:00:06]} Kc5 {[%emt 0:00:27]} 28. Ke3 {[%emt 0:00:04]} b4 {[%emt 0:03:13]} 29. Kd2 {[%emt 0:00:09]} a4 {[%emt 0:00:09]} 30. a3 {[%emt 0:00:10]} Kb5 {[%emt 0:03:01]} 31. axb4 {[%emt 0:00:06]} Kxb4 {[%emt 1:13:26]} 32. Kc2 {[%emt 1:20:53]} c5 {[%emt 0:00:00]} 33. e3 {[%emt 0:00:00]} f5 {[%emt 0:00:00]} 34. f4 {[%emt 0:00:00]} gxf4 {[%emt 0:00:00]} 35. exf4 {[%emt 0:00:00]} c3 {[%emt 0:00:00]} 36. bxc3+ {[%emt 0:00:00]} Kc4 {[%emt 0:00:00]} 37. Ra1 {[%emt 0:00:00]} Kb5 {[%emt 0:00:00]} 38. Kd3 {[%emt 0:00:00]} c4+ {[%emt 0:00:00]} 39. Ke3 {[%emt 0:00:00]} 1-0

[Event "African Individual Chess-ch Open 2024"]
[Site "Accra"]
[Date "2024.03.18"]
[Round "7.12"]
[White "Ntamatungiro, Wilfried"]
[Black "Adewole, Adeyinka Samuel"]
[Result "1-0"]
[ECO "B07"]
[WhiteElo "1905"]
[BlackElo "1935"]
[Annotator "NA RC"]
[PlyCount "63"]
[EventDate "2024.03.13"]
[EventCountry "GHA"]
[SourceTitle "playchess.com"]
[Source "ChessBase"]
[SourceQuality "1"]
[TimeControl "5400+30"]

1. e4 {[%emt 0:00:03]} d6 {[%emt 0:00:26]} 2. d4 {[%emt 0:00:10]} Nf6 {[%emt 0:00:07]} 3. Bd3 {[%emt 0:00:26]} g6 {[%emt 0:00:16]} 4. f4 {[%emt 0:00:09]} Bg7 {[%emt 0:01:02]} 5. Nf3 {[%emt 0:00:17]} c6 {[%emt 0:00:10]} 6. O-O {[%emt 0:01:15]} O-O {[%emt 0:00:29]} 7. f5 {[%emt 0:01:33]} Nbd7 {[%emt 0:01:18]} 8. e5 {[%emt 0:03:57]} dxe5 {[%emt 0:02:18]} 9. dxe5 {[%emt 0:01:05]} Nxe5 {[%emt 0:00:37]} 10. Nxe5 {[%emt 0:00:15]} Qd4+ {[%emt 0:00:04]} 11. Kh1 {[%emt 0:00:57]} Qxe5 {[%emt 0:00:20]} 12. fxg6 {[%emt 0:00:11]} hxg6 {[%emt 0:01:25]} 13. Nd2 {[%emt 0:01:55]} Ng4 {[%emt 0:02:45]} 14. Nf3 {[%emt 0:00:27]} Qh5 {[%emt 0:00:59]} 15. Qe1 {[%emt 0:04:58]} e5 {[%emt 0:02:36]} 16. h3 {[%emt 0:03:22]} f5 {[%emt 0:09:01]} 17. Bc4+ {[%emt 0:01:35]} Kh8 {[%emt 0:00:18]} 18. Kg1 {[%emt 0:00:55]} Nh6 {[%emt 0:02:48]} 19. Nxe5 {[%emt 0:02:59]} f4 {[%emt 0:01:44]} 20. Bxf4 {[%emt 0:03:44]} Rxf4 {[%emt 0:00:39]} 21. Nxg6+ {[%emt 0:00:08]} Qxg6 {[%emt 0:00:26]} 22. Rxf4 {[%emt 0:01:57]} Bxh3 {[%emt 0:01:26]} 23. Qf2 {[%emt 0:01:15]} Bf5 {[%emt 0:02:06]} 24. c3 {[%emt 0:03:52]} b5 {[%emt 0:00:59]} 25. Bb3 {[%emt 0:00:57]} Be5 {[%emt 0:00:11]} 26. Rh4 {[%emt 0:01:06]} Rf8 {[%emt 0:06:24]} 27. Rf1 {[%emt 0:02:12]} Bf6 {[%emt 0:03:42]} 28. Rh1 {[%emt 0:06:34]} Be4 {[%emt 0:08:13]} 29. Rh2 {[%emt 0:02:03]} Qg7 {[%emt 0:03:48]} 30. Qe3 {[%emt 0:01:38]} Bh7 {[%emt 0:04:00]} 31. Rxh6 {[%emt 0:02:48]} Bd8 {[%emt 0:01:38]} 32. Rxf8+ {[%emt 0:00:29]} 1-0

[Event "African Individual Chess-ch Open 2024"]
[Site "Accra"]
[Date "2024.03.18"]
[Round "7.13"]
[White "Oluka Robert Mcligeyo"]
[Black "Egbe, Kossi Thierry"]
[Result "1-0"]
[ECO "D78"]
[WhiteElo "2041"]
[BlackElo "1871"]
[Annotator "RC"]
[PlyCount "129"]
[EventDate "2024.03.13"]
[EventCountry "GHA"]
[SourceTitle "playchess.com"]
[Source "ChessBase"]
[SourceQuality "1"]
[TimeControl "5400+30"]

1. Nf3 {[%emt 0:01:45]} Nf6 {[%emt 0:01:06]} 2. d4 {[%emt 0:00:30]} g6 {[%emt 0:00:30]} 3. g3 {[%emt 0:00:30]} d5 {[%emt 0:00:30]} 4. Bg2 {[%emt 0:00:30]} Bg7 {[%emt 1:30:24]} 5. c4 c6 {[%emt 0:00:00]} 6. O-O {[%emt 0:00:00]} O-O {[%emt 0:00:00]} 7. Qb3 {[%emt 0:03:58]} e6 {[%emt 0:00:00]} 8. Nc3 {[%emt 0:01:51]} Qb6 {[%emt 0:00:00]} 9. c5 {[%emt 0:00:05]} Qxb3 {[%emt 0:00:00]} 10. axb3 {[%emt 0:00:05]} Na6 {[%emt 0:00:00]} 11. Ne5 {[%emt 0:00:50]} Nd7 {[%emt 0:00:00]} 12. Nf3 {[%emt 0:02:28]} e5 {[%emt 0:00:00]} 13. e3 {[%emt 0:00:06]} Nb4 {[%emt 0:00:00]} 14. Ra4 {[%emt 0:02:28]} Nc2 {[%emt 0:00:00]} 15. Rd1 {[%emt 0:04:14]} b5 {[%emt 0:00:00]} 16. cxb6 {[%emt 0:01:17]} Nxb6 {[%emt 0:00:00]} 17. Ra5 {[%emt 0:00:36]} e4 {[%emt 0:00:00]} 18. Ne1 {[%emt 0:00:34]} Nb4 {[%emt 0:00:00]} 19. Bd2 {[%emt 0:00:36]} Na6 {[%emt 0:00:00]} 20. Rda1 {[%emt 0:00:54]} Nd7 {[%emt 0:00:00]} 21. Bf1 {[%emt 0:10:08]} Ndb8 {[%emt 0:00:00]} 22. Nc2 {[%emt 0:00:10]} Bf6 {[%emt 0:00:00]} 23. b4 {[%emt 0:01:19]} Bd8 {[%emt 0:00:00]} 24. R5a2 {[%emt 1:07:36]} Bb6 {[%emt 0:00:00]} 25. b5 {[%emt 0:00:00]} Nc7 {[%emt 0:00:00]} 26. Na4 {[%emt 0:00:00]} Bb7 {[%emt 0:00:00]} 27. Nxb6 {[%emt 0:00:00]} axb6 {[%emt 0:00:00]} 28. Rxa8 {[%emt 0:00:00]} Bxa8 {[%emt 0:00:00]} 29. Bb4 {[%emt 0:00:00]} Rc8 {[%emt 0:00:00]} 30. Ra7 {[%emt 0:00:00]} cxb5 {[%emt 0:00:00]} 31. Bxb5 {[%emt 0:00:00]} Nxb5 {[%emt 0:00:00]} 32. Rxa8 {[%emt 0:00:00]} Nc7 {[%emt 0:00:00]} 33. Ra1 {[%emt 0:00:00]} Nca6 {[%emt 0:00:00]} 34. Bc3 {[%emt 0:00:00]} Rc4 {[%emt 0:00:00]} 35. Na3 {[%emt 0:00:00]} Rc6 {[%emt 0:00:00]} 36. Nb5 {[%emt 0:00:00]} Kf8 {[%emt 0:00:00]} 37. Kf1 {[%emt 0:00:00]} Ke7 {[%emt 0:00:00]} 38. Ke2 {[%emt 0:00:00]} g5 {[%emt 0:00:00]} 39. g4 {[%emt 0:00:00]} Rh6 {[%emt 0:00:00]} 40. Rh1 {[%emt 0:00:00]} Nc6 {[%emt 0:00:00]} 41. Kf1 {[%emt 0:00:00]} Ncb4 {[%emt 0:00:00]} 42. Kg2 {[%emt 0:00:00]} Nd3 {[%emt 0:00:00]} 43. Ra1 {[%emt 0:00:00]} Nb8 {[%emt 0:00:00]} 44. Ra7+ {[%emt 0:00:00]} Nd7 {[%emt 0:00:00]} 45. Nc7 {[%emt 0:00:00]} Rd6 {[%emt 0:00:00]} 46. Na6 {[%emt 0:00:00]} Ke6 {[%emt 0:02:57]} 47. Rb7 {[%emt 0:00:00]} f5 {[%emt 0:02:10]} 48. Nc7+ {[%emt 0:00:00]} Ke7 {[%emt 0:05:53]} 49. gxf5 {[%emt 0:00:00]} Kd8 {[%emt 0:00:44]} 50. Ne6+ {[%emt 0:00:00]} Ke7 {[%emt 0:02:07]} 51. Ra7 {[%emt 0:00:00]} h6 {[%emt 0:07:45]} 52. f3 {[%emt 0:00:00]} exf3+ {[%emt 0:00:00]} 53. Kxf3 {[%emt 0:00:00]} Rxe6 {[%emt 0:00:00]} 54. fxe6 {[%emt 0:00:00]} Kxe6 {[%emt 0:00:00]} 55. Ra1 {[%emt 0:00:00]} b5 {[%emt 0:00:00]} 56. b4 {[%emt 0:00:00]} g4+ {[%emt 0:00:00]} 57. Ke2 {[%emt 0:00:00]} Nxb4 {[%emt 0:00:00]} 58. Bxb4 {[%emt 0:00:00]} Kf5 {[%emt 0:00:00]} 59. Kd3 {[%emt 0:00:00]} h5 {[%emt 0:00:00]} 60. Be1 {[%emt 0:00:00]} Kg5 {[%emt 0:00:00]} 61. Ra5 {[%emt 0:00:00]} h4 {[%emt 0:00:00]} 62. Rxb5 {[%emt 0:00:00]} Nf6 {[%emt 0:00:00]} 63. e4 {[%emt 0:00:00]} Nxe4 {[%emt 0:00:00]} 64. Rxd5+ {[%emt 0:00:00]} Kf4 {[%emt 0:00:00]} 65. Bxh4 {[%emt 0:00:00]} 1-0

[Event "African Individual Chess-ch Open 2024"]
[Site "Accra"]
[Date "2024.03.19"]
[Round "8.1"]
[White "Amin, Bassem"]
[Black "Silva, David"]
[Result "1-0"]
[ECO "A16"]
[WhiteElo "2670"]
[BlackElo "2358"]
[Annotator "TA"]
[PlyCount "53"]
[EventDate "2024.03.13"]
[EventCountry "GHA"]
[SourceTitle "playchess.com"]
[Source "ChessBase"]
[SourceQuality "1"]
[TimeControl "5400+30"]

{[%evp 12,53,31,15,12,0,29,22,19,4,52,-2,-13,-28,-1,-12,-7,-12,0,-14,15,0,29,28,20,21,18,12,25,20,49,56,52,65,39,38,138,139,154,139,426,433,437,422]} 1. Nf3 {[%emt 0:00:50]} Nf6 {[%emt 0:00:17]} 2. g3 {[%emt 0:00:06]} g6 {[%emt 0:00:05]} 3. Bg2 {[%emt 0:00:04]} Bg7 {[%emt 0:00:05]} 4. c4 {[%emt 0:00:08]} O-O {[%emt 0:00:32]} 5. Nc3 {[%emt 0:00:22]} d6 {[%emt 0:00:46]} 6. O-O {[%emt 0:00:08]} c6 {[%emt 0:00:24]} 7. d3 {[%emt 0:00:07]} d5 {[%emt 0:01:29]} 8. Be3 {[%emt 0:00:11]} dxc4 {[%emt 0:02:20]} 9. dxc4 {[%emt 0:00:11]} Qa5 {[%emt 0:00:07] The position is equal.} 10. h3 {[%emt 0:01:41]} Be6 {[%emt 0:00:28]} (10... Ne8 $11) 11. Nd2 {[%emt 0:10:26]} ({White should play} 11. Qb3 $14) 11... Nbd7 {[%emt 0:05:39][%cal Bb8d7,Bd7b6,Bb6a8][%mdl 32]} 12. Qb3 {[%emt 0:06:35]} Nb6 {[%emt 0:02:45]} 13. Rac1 {[%emt 0:04:20]} Qa6 {[%emt 0:12:25][%cal Rb6c4]} 14. Ncb1 {[%emt 0:02:46]} Rfd8 {[%emt 0:04:52]} 15. Qb4 {[%emt 0:00:42]} Rd7 {[%emt 0:03:10]} 16. a3 {[%emt 0:10:18]} Rc8 {[%emt 0:03:43]} 17. b3 {[%emt 0:02:36]} Na8 {[%emt 0:11:26]} 18. Rfd1 {[%emt 0:13:28]} b6 $1 {[%emt 0:10:13]} 19. Nf3 {[%emt 0:00:11]} c5 {[%emt 0:00:43]} 20. Qe1 {[%emt 0:00:05]} Ne4 {[%emt 0:03:04]} 21. Ng5 $36 {[%emt 0:00:47][%mdl 2048] White fights for an advantage.} Nxg5 {[%emt 0:01:12]} 22. Bxg5 {[%emt 0:00:13]} Rxd1 {[%emt 0:07:03]} 23. Qxd1 {[%emt 0:05:29]} Re8 {[%emt 0:03:05] [#]} (23... b5 $14) 24. Bc6 $1 $16 {[%emt 0:00:52]} Rc8 {[%emt 0:00:08] [#]} 25. Bxe7 $1 {[%emt 0:00:43][%cal Oe2e3]} Bxh3 $2 {[%emt 0:02:52][%mdl 8192]} (25... Nc7 $16) 26. Qd5 $18 {[%emt 0:00:50][%cal Oc6b7] Black must now prevent Bb7!} Be6 {[%emt 0:11:59]} 27. Qh1 {[%emt 0:03:41] Weighted Error Value: White=0.08 (flawless) /Black=0.31.  Loses game:     	---       	Black=1      Mistake:       	White=1     	Black=2      Inaccurate:     	---       	Black=4      OK:         	White=10    	Black=6      Strong:       	White=2     	Black=1} 1-0

[Event "African Individual Chess-ch Open 2024"]
[Site "Accra"]
[Date "2024.03.19"]
[Round "8.2"]
[White "Bellahcene, Bilel"]
[Black "Rakotomaharo, Fy Antenaina"]
[Result "1/2-1/2"]
[ECO "C29"]
[WhiteElo "2522"]
[BlackElo "2454"]
[Annotator "TA"]
[PlyCount "80"]
[EventDate "2024.03.13"]
[EventCountry "GHA"]
[SourceTitle "playchess.com"]
[Source "ChessBase"]
[SourceQuality "1"]
[TimeControl "5400+30"]

{[%evp 13,80,6,27,16,42,42,47,39,38,19,21,22,18,16,29,18,39,25,30,9,22,0,70,48,69,50,94,49,201,108,157,154,274,277,283,260,621,620,821,816,814,318,780,308,292,297,302,310,282,0,292,269,843,825,844,835,600,0,0,0,0,0,0,0,0,0,0,0,0]} 1. e4 {[%emt 0:04:11]} e5 {[%emt 0:00:06]} 2. Nc3 {[%emt 0:00:05]} Nf6 {[%emt 0:00:19]} 3. f4 {[%emt 0:00:02]} d5 {[%emt 0:00:23]} 4. fxe5 {[%emt 0:00:11]} Nxe4 {[%emt 0:00:05]} 5. Nf3 {[%emt 0:00:02]} Bc5 {[%emt 0:02:24]} 6. Qe2 {[%emt 0:00:04] C29: Vienna Game: 2...Nf6 3 f4.} Nxc3 {[%emt 0:03:03]} 7. dxc3 {[%emt 0:09:39]} Nc6 {[%emt 0:09:03]} 8. Be3 $146 {[%emt 0:12:20]} ({Predecessor:} 8. Bf4 O-O 9. Qd2 Be6 10. Bd3 Qe7 11. O-O-O Rad8 12. Qe2 b5 13. Bxb5 Na5 14. Bd3 {0-1 Kruckenhauser,A (2283)-Roebers,J (2170) Titled Tuesday intern op 26th Jan blitz 2021 (7)}) 8... Bxe3 {[%emt 0:14:19]} 9. Qxe3 {[%emt 0:00:24]} Qe7 {[%emt 0:00:03]} 10. O-O-O {[%emt 0:01:06]} Be6 {[%emt 0:00:05]} 11. h3 {[%emt 0:02:04]} a6 {[%emt 0:10:33]} 12. Bd3 {[%emt 0:01:46]} O-O-O {[%emt 0:00:30]} 13. Rhf1 {[%emt 0:01:00]} Kb8 {[%emt 0:01:22]} 14. a3 {[%emt 0:02:36]} h6 {[%emt 0:03:42]} 15. Rde1 {[%emt 0:00:43]} Rd7 {[%emt 0:11:01]} 16. b4 {[%emt 0:12:22]} Na7 {[%emt 0:13:51]} 17. Nd2 {[%emt 0:07:59]} a5 {[%emt 0:03:27]} (17... Nc8 $11) 18. Nb3 $14 {[%emt 0:02:13]} (18. bxa5 $2 Qxa3+ 19. Kd1 Qxa5 $19) 18... axb4 {[%emt 0:04:56]} 19. axb4 {[%emt 0:05:34]} b6 {[%emt 0:02:49]} 20. Kd2 {[%emt 0:05:58]} Rc8 $2 {[%emt 0:07:30]} ({Better is} 20... Nc6 $14) 21. Rb1 {[%emt 0:08:53]} ({White should try} 21. Ra1 $18) 21... Re8 {[%emt 0:08:12]} (21... Qg5 $142) 22. Nd4 $16 {[%emt 0:02:33]} Rdd8 {[%emt 0:00:06]} (22... Qg5 $16 {was called for.}) 23. Ra1 $18 {[%emt 0:02:44]} Bd7 {[%emt 0:00:24]} 24. Ra2 {[%emt 0:01:41]} Nc6 $2 {[%emt 0:03:09] [#]} (24... Nc8 25. Rfa1 c5 (25... Qxe5 $2 26. Ra8+ Kb7 27. Ba6+ Kxa8 28. Bxc8+ Kb8 29. Qxe5 $18)) 25. Rfa1 $1 $18 {[%emt 0:01:00]} Nxd4 {[%emt 0:00:34]} 26. Ra8+ {[%emt 0:08:56]} (26. cxd4 Bc6 $16 (26... Qxb4+ $2 27. c3 $18)) 26... Kb7 {[%emt 0:00:03]} 27. R1a7+ {[%emt 0:00:04]} Kc6 {[%emt 0:00:06]} 28. Rxd8 $2 {[%emt 0:02:21]} (28. Qxd4 {[%csl Gd3][%cal Rb4b5]} Qg5+ 29. Kd1 Qh5+ 30. Kc1 (30. g4 Bxg4+ 31. Kc1 Qxe5 $18) 30... Qg5+ 31. Kb2 Qxe5 32. Qxe5 Rxe5 33. Rxd8) 28... Rxd8 $18 {[%emt 0:01:05]} 29. Qxd4 {[%emt 0:01:51]} (29. cxd4 Qxb4+ 30. Ke2 Qb2 $15) 29... Qg5+ {[%emt 0:01:10]} 30. Kd1 {[%emt 0:01:39]} Be6 {[%emt 0:00:32]} 31. b5+ {[%emt 0:00:44]} Kd7 {[%emt 0:00:04]} 32. Qxb6 {[%emt 0:00:10]} Ke8 $2 {[%emt 0:01:01]} (32... Qxe5 33. Qc6+ Ke7 34. Qc5+ (34. Qxc7+ Qxc7 35. Rxc7+ Kd6 $16) (34. Rxc7+ Bd7 $18) 34... Qd6 35. Rxc7+ Ke8 36. Qxd6 Rxd6) 33. Qxc7 $18 {[%emt 0:01:26]} Rc8 {[%emt 0:00:22]} 34. Qd6 {[%emt 0:01:03]} Bxh3 {[%emt 0:00:09] [#]} 35. b6 $2 {[%emt 0:01:59]} ({And not} 35. gxh3 Qg1+ 36. Kd2 Qg5+ 37. Kd1 (37. Ke2 Qg2+ 38. Ke3 Qxh3+ 39. Kf2 Qh2+ 40. Kf1 Qh1+ 41. Kf2 Qh2+ 42. Kf1 Qh3+ 43. Kf2 Qh2+ $11) 37... Qg1+ 38. Kd2 Qg5+ 39. Kd1 $11 (39. Ke2 Qg2+ 40. Kd1 Qg1+ $11)) (35. Qxd5 Bg4+ 36. Be2 Rd8 $16) (35. Be2 $1 $18 {And now b6 would win.} Rd8 36. Qc5 (36. Qc6+ Bd7 $18)) 35... Bg4+ $11 {[%emt 0:00:32]} 36. Ke1 {[%emt 0:00:32]} Qe3+ {[%emt 0:00:44]} 37. Kf1 {[%emt 0:00:03]} Qf4+ {[%emt 0:00:07]} 38. Kg1 {[%emt 0:00:08]} Qe3+ $1 {[%emt 0:00:08]} 39. Kh1 {[%emt 0:00:45]} Qc1+ $1 {[%emt 0:00:04]} 40. Kh2 {[%emt 0:00:53]} Qf4+ {[%emt 0:00:06]} 1/2-1/2

[Event "African Individual Chess-ch Open 2024"]
[Site "Accra"]
[Date "2024.03.19"]
[Round "8.3"]
[White "Ortega Amarelle, Mariano"]
[Black "Mwali, Chitumbo"]
[Result "1/2-1/2"]
[ECO "A67"]
[WhiteElo "2482"]
[BlackElo "2340"]
[Annotator "TA"]
[PlyCount "114"]
[EventDate "2024.03.13"]
[EventCountry "GHA"]
[SourceTitle "playchess.com"]
[Source "ChessBase"]
[SourceQuality "1"]
[TimeControl "5400+30"]

{[%evp 27,114,43,27,14,28,0,8,8,25,34,6,-9,0,-35,-39,-34,-29,-26,-19,-8,28,0,0,0,0,27,7,0,0,6,8,0,0,6,8,0,0,0,0,0,0,0,0,0,0,0,0,0,0,0,0,-61,8,-38,-37,-37,-14,-15,-14,-32,-32,-35,-26,-28,0,0,0,-40,-2,0,0,0,0,0,0,0,0,0,0,0,0,0,0,0,0,0,0,0,0]} 1. d4 {[%emt 0:00:39]} Nf6 {[%emt 0:00:05]} 2. c4 {[%emt 0:00:31]} c5 {[%emt 0:00:06]} 3. d5 {[%emt 0:00:27]} e6 {[%emt 0:00:06]} 4. Nc3 {[%emt 0:00:15]} exd5 {[%emt 0:00:04]} 5. cxd5 {[%emt 0:00:07]} d6 {[%emt 0:00:05]} 6. e4 {[%emt 0:00:38]} g6 {[%emt 0:00:17]} 7. f4 {[%emt 0:00:19]} Bg7 {[%emt 1:33:17]} 8. Bb5+ {[%emt 0:00:11]} Nfd7 {[%emt 0:00:00]} 9. a4 {[%emt 0:00:14]} Qh4+ {[%emt 0:00:00]} 10. g3 {[%emt 0:03:09] A67: Benoni (Dreibauern-System).} Qd8 {[%emt 0:00:00]} 11. Nf3 {[%emt 0:00:41]} O-O {[%emt 0:00:00]} 12. O-O {[%emt 0:00:14]} Na6 $1 {[%emt 0:00:00][%mdl 4] im Vergleich zu 12...a6 vielversprechender.} 13. Re1 {[%emt 0:04:38]} Nc7 {[%emt 0:00:00]} 14. Bf1 {[%emt 0:14:01]} Re8 {[%emt 0:00:00]} 15. Bg2 {[%emt 0:12:01]} Rb8 {[%emt 0:00:00]} 16. h3 $146 {[%emt 0:15:33]} ({Predecessor:} 16. Nd2 Nf6 17. Nc4 Ng4 18. Ne2 b5 19. axb5 Nxb5 20. h3 Nf6 21. e5 Nd7 22. Nxd6 Nxd6 23. exd6 Bxb2 24. Bxb2 Rxb2 {½-½ Tikovsky,A (2202)-Nepomucky,O (2120) MOR-chT2S 0203 2002 (11)}) 16... b5 {[%emt 0:00:00]} 17. axb5 {[%emt 0:21:13]} Nxb5 {[%emt 0:00:00]} 18. Nxb5 {[%emt 0:05:46]} Rxb5 {[%emt 0:00:00]} 19. Nd2 {[%emt 0:04:18]} Qc7 {[%emt 0:00:00]} 20. Nc4 {[%emt 0:01:19]} Nb6 {[%emt 0:00:00]} 21. Na3 {[%emt 0:01:28]} Rb4 {[%emt 0:00:00]} 22. Nc2 {[%emt 0:00:33]} Rb3 {[%emt 0:00:00]} (22... Bxb2 23. Ra2 Bc3 24. Nxb4 cxb4 25. Bd2 $16) 23. Ra3 {[%emt 0:02:25]} Rb5 {[%emt 0:00:00]} 24. b3 {[%emt 0:01:44]} c4 {[%emt 0:00:00]} 25. b4 {[%emt 0:00:10]} Nd7 {[%emt 0:00:00]} 26. Be3 {[%emt 0:02:29]} a5 {[%emt 0:00:00]} 27. bxa5 {[%emt 0:00:30]} Rxa5 {[%emt 0:00:00]} 28. Bd4 {[%emt 0:01:05]} Bxd4+ {[%emt 0:00:07]} 29. Qxd4 {[%emt 0:00:06]} Rxa3 {[%emt 0:00:15]} 30. Nxa3 {[%emt 0:00:06]} Ba6 $1 {[%emt 0:00:09]} 31. Rc1 {[%emt 0:01:54]} Nc5 {[%emt 0:01:40]} 32. Rc3 {[%emt 0:01:35]} (32. Nxc4 $2 Nb3 33. Qf6 Bxc4 $19 (33... Nxc1 $2 34. Nxd6 Qa7+ 35. Kh2 $19)) 32... Nb3 {[%emt 0:01:10]} 33. Qe3 {[%emt 0:00:40]} f5 {[%emt 0:00:23]} 34. e5 {[%emt 0:04:46]} dxe5 {[%emt 0:01:08]} 35. d6 {[%emt 0:00:58]} Qxd6 {[%emt 0:03:53]} 36. Nxc4 {[%emt 0:00:06]} Bxc4 {[%emt 0:02:20]} 37. Rxc4 {[%emt 0:00:02]} Na5 {[%emt 0:00:31]} 38. Rc5 {[%emt 0:01:21]} Qb6 {[%emt 0:02:10]} 39. fxe5 {[%emt 0:00:23]} (39. Bd5+ $11 Kg7 40. g4 (40. fxe5 $2 {verliert.} Rc8 $19)) 39... Kh8 {[%emt 0:00:16] [#]} ({Günstiger ist} 39... Nc4 $1 $15 40. Qd4 (40. Rxc4 $2 {ist das falsche Schlagen.} Qxe3+ 41. Kh2 Qxe5 $19) (40. Bd5+ Kg7 $15) 40... Nxe5) 40. e6 {[%emt 0:00:56]} (40. Qf2 $1 $11) 40... Nb3 $1 $15 {[%emt 0:01:48]} 41. Rc3 {[%emt 0:00:56]} Rxe6 {[%emt 0:00:00]} 42. Qxb6 {[%emt 0:00:00]} Rxb6 {[%emt 0:00:00]} 43. Rc8+ {[%emt 0:00:00]} Kg7 {[%emt 0:00:00]} 44. Rc7+ {[%emt 0:00:00]} Kh6 {[%emt 0:00:00]} 45. Bd5 {[%emt 0:00:00]} Nd4 {[%emt 0:00:00]} 46. Bg8 {[%emt 0:00:00]} Rb2 {[%emt 0:00:00]} 47. Rxh7+ {[%emt 0:00:00]} Kg5 {[%emt 0:00:00]} 48. Kf1 {[%emt 0:00:00]} f4 {[%emt 0:00:00]} 49. gxf4+ {[%emt 0:00:00]} Kxf4 {[%emt 0:00:00]} 50. Rh4+ {[%emt 0:00:00]} Ke3 {[%emt 0:00:00]} 51. Bd5 {[%emt 0:00:00]} Rf2+ {[%emt 0:00:00]} 52. Kg1 {[%emt 0:00:00]} Ne2+ {[%emt 0:00:00]} 53. Kh1 {[%emt 0:00:00]} Nf4 {[%emt 0:00:00]} 54. Ba8 {[%emt 0:00:00]} Ra2 {[%emt 0:00:00]} 55. Bb7 {[%emt 0:00:00]} Rb2 {[%emt 0:04:22]} 56. Ba8 {[%emt 0:00:00]} Rb1+ {[%emt 0:01:30]} 57. Kh2 {[%emt 0:00:00]} Rb2+ {[%emt 0:03:18]} 1/2-1/2